[Event "*** Titled Tuesday Blitz"]
[Site "Chess.com"]
[Date "2019.04.02"]
[Round "8"]
[White "SF-96"]
[Black "Sanyura"]
[Result "1-0"]
[WhiteElo "2551"]
[BlackElo "2436"]
[TimeControl "180+2"]
[EndTime "15:48:56 PDT"]
[Termination "SF-96 won on time"]

1. e4 {[%clk 0:02:59.5]} 1... c5 {[%clk 0:03:00.6]} 2. Nf3 {[%clk 0:03:00]} 2...
e6 {[%clk 0:03:02.2]} 3. d4 {[%clk 0:03:01.5]} 3... cxd4 {[%clk 0:03:03.7]} 4.
Nxd4 {[%clk 0:03:03.4]} 4... Nc6 {[%clk 0:03:05.1]} 5. Nc3 {[%clk 0:03:02.8]}
5... a6 {[%clk 0:03:05.5]} 6. Nxc6 {[%clk 0:03:04]} 6... bxc6 {[%clk 0:03:06.5]}
7. Bd3 {[%clk 0:03:05.5]} 7... d5 {[%clk 0:03:08.2]} 8. O-O {[%clk 0:02:54.7]}
8... Nf6 {[%clk 0:03:09.2]} 9. Re1 {[%clk 0:02:42.5]} 9... Be7 {[%clk
0:03:09.7]} 10. e5 {[%clk 0:02:37.7]} 10... Nd7 {[%clk 0:03:10.4]} 11. Qg4
{[%clk 0:02:38.7]} 11... g6 {[%clk 0:03:10.4]} 12. Bh6 {[%clk 0:02:38.9]} 12...
Rb8 {[%clk 0:03:07.7]} 13. Rab1 {[%clk 0:02:15.5]} 13... Rb4 {[%clk 0:03:07.4]}
14. Qg3 {[%clk 0:02:10]} 14... Rh4 {[%clk 0:02:35.3]} 15. Bg7 {[%clk 0:01:26.1]}
15... Rg8 {[%clk 0:02:33.5]} 16. Bf6 {[%clk 0:01:27.4]} 16... Bxf6 {[%clk
0:02:27.7]} 17. exf6 {[%clk 0:01:28.8]} 17... Qxf6 {[%clk 0:02:29.3]} 18. Qc7
{[%clk 0:01:29.8]} 18... Ke7 {[%clk 0:02:30.1]} 19. Qxc6 {[%clk 0:01:27.7]}
19... Kd8 {[%clk 0:01:40.6]} 20. Bxa6 {[%clk 0:01:28.3]} 20... Bxa6 {[%clk
0:01:37.4]} 21. Qxa6 {[%clk 0:01:29.5]} 21... Rc4 {[%clk 0:00:44.5]} 22. Qa5+
{[%clk 0:01:03.8]} 22... Kc8 {[%clk 0:00:10.7]} 23. Nb5 {[%clk 0:00:53.5]} 23...
Qf4 {[%clk 0:00:11.4]} 24. g3 {[%clk 0:00:38.8]} 24... Qb8 {[%clk 0:00:10.9]}
25. Re3 {[%clk 0:00:32.1]} 25... Rc5 {[%clk 0:00:05.2]} 26. Na7+ {[%clk
0:00:27.6]} 26... Kb7 {[%clk 0:00:02.9]} 27. Rb3+ {[%clk 0:00:28.5]} 1-0

[Event "*** Titled Tuesday Blitz"]
[Site "Chess.com"]
[Date "2019.04.02"]
[Round "8"]
[White "StoreySniper"]
[Black "HiHaruka"]
[Result "1-0"]
[WhiteElo "2459"]
[BlackElo "2218"]
[TimeControl "180+2"]
[EndTime "15:48:59 PDT"]
[Termination "StoreySniper won by resignation"]

1. e4 {[%clk 0:03:01.9]} 1... e6 {[%clk 0:03:00.6]} 2. d3 {[%clk 0:02:57.8]}
2... d5 {[%clk 0:02:59.6]} 3. Nd2 {[%clk 0:02:59.2]} 3... Nf6 {[%clk 0:02:57.3]}
4. Ngf3 {[%clk 0:02:59.2]} 4... c5 {[%clk 0:02:50.2]} 5. g3 {[%clk 0:02:57.8]}
5... b6 {[%clk 0:02:46.1]} 6. Bg2 {[%clk 0:02:56.9]} 6... Bb7 {[%clk 0:02:46.8]}
7. e5 {[%clk 0:02:57.2]} 7... Nfd7 {[%clk 0:02:43.3]} 8. O-O {[%clk 0:02:58.1]}
8... Qc7 {[%clk 0:02:37.6]} 9. Re1 {[%clk 0:02:58.9]} 9... d4 {[%clk 0:02:38.1]}
10. Nc4 {[%clk 0:02:55.7]} 10... Be7 {[%clk 0:02:31.5]} 11. Bf4 {[%clk
0:02:45.4]} 11... Bd5 {[%clk 0:02:01.9]} 12. Nd6+ {[%clk 0:02:43.1]} 12... Bxd6
{[%clk 0:01:56.1]} 13. exd6 {[%clk 0:02:43.9]} 13... Qb7 {[%clk 0:01:56.9]} 14.
Nh4 {[%clk 0:02:40]} 14... O-O {[%clk 0:01:54.9]} 15. Be4 {[%clk 0:02:14.2]}
15... h6 {[%clk 0:01:23.5]} 16. Bxh6 {[%clk 0:01:56.4]} 16... Bxe4 {[%clk
0:00:56.4]} 17. Rxe4 {[%clk 0:01:24.6]} 17... gxh6 {[%clk 0:00:56.1]} 18. Qh5
{[%clk 0:01:11]} 18... Nf6 {[%clk 0:00:34.3]} 19. Qxh6 {[%clk 0:00:38.1]} 19...
Nxe4 {[%clk 0:00:32.7]} 20. Re1 {[%clk 0:00:37.5]} 20... Qd5 {[%clk 0:00:15]}
21. Rxe4 {[%clk 0:00:33.5]} 21... f5 {[%clk 0:00:15.6]} 22. Qg6+ {[%clk
0:00:30.3]} 22... Kh8 {[%clk 0:00:16.1]} 23. Nxf5 {[%clk 0:00:29.5]} 23... Rxf5
{[%clk 0:00:11]} 24. Rh4+ {[%clk 0:00:26.4]} 24... Rh5 {[%clk 0:00:12]} 25.
Rxh5+ {[%clk 0:00:27.5]} 25... Qxh5 {[%clk 0:00:13.9]} 26. Qxh5+ {[%clk
0:00:28.9]} 26... Kg7 {[%clk 0:00:15.2]} 27. Qg4+ {[%clk 0:00:29.7]} 27... Kh8
{[%clk 0:00:15.3]} 28. Qh4+ {[%clk 0:00:26.5]} 28... Kg7 {[%clk 0:00:15.6]} 29.
Qe7+ {[%clk 0:00:26.7]} 29... Kg6 {[%clk 0:00:16.3]} 30. Qb7 {[%clk 0:00:27.5]}
1-0

[Event "*** Titled Tuesday Blitz"]
[Site "Chess.com"]
[Date "2019.04.02"]
[Round "8"]
[White "emperor87"]
[Black "gmjoey1"]
[Result "1-0"]
[WhiteElo "2719"]
[BlackElo "2516"]
[TimeControl "180+2"]
[EndTime "15:49:01 PDT"]
[Termination "emperor87 won on time"]

1. Nf3 {[%clk 0:03:01.9]} 1... Nf6 {[%clk 0:02:59.5]} 2. g3 {[%clk 0:03:03.1]}
2... b6 {[%clk 0:02:58.6]} 3. Bg2 {[%clk 0:03:04.4]} 3... Bb7 {[%clk 0:02:59.4]}
4. O-O {[%clk 0:03:05.4]} 4... g6 {[%clk 0:03:00.8]} 5. d3 {[%clk 0:03:06.7]}
5... Bg7 {[%clk 0:03:00.8]} 6. e4 {[%clk 0:03:07.7]} 6... O-O {[%clk 0:03:00.4]}
7. e5 {[%clk 0:03:09]} 7... Ne8 {[%clk 0:02:50.9]} 8. d4 {[%clk 0:03:08.5]} 8...
d6 {[%clk 0:02:51.5]} 9. Qe2 {[%clk 0:03:09.6]} 9... d5 {[%clk 0:02:27.7]} 10.
e6 {[%clk 0:03:06.9]} 10... Ba6 {[%clk 0:02:18.6]} 11. exf7+ {[%clk 0:03:04.7]}
11... Rxf7 {[%clk 0:02:19]} 12. Qe6 {[%clk 0:03:04.1]} 12... Bc8 {[%clk
0:01:55.7]} 13. Qe3 {[%clk 0:02:52.9]} 13... h6 {[%clk 0:01:42.3]} 14. Nc3
{[%clk 0:02:51]} 14... e6 {[%clk 0:01:37.8]} 15. h4 {[%clk 0:02:48]} 15... Nc6
{[%clk 0:01:32.7]} 16. Ne2 {[%clk 0:02:47.4]} 16... Nd6 {[%clk 0:01:22.1]} 17.
c3 {[%clk 0:02:39.8]} 17... Nf5 {[%clk 0:01:15.8]} 18. Qd3 {[%clk 0:02:40]}
18... a5 {[%clk 0:01:15.3]} 19. Re1 {[%clk 0:02:40.9]} 19... Ba6 {[%clk
0:01:05.3]} 20. Qc2 {[%clk 0:02:41.9]} 20... Qf6 {[%clk 0:00:52.8]} 21. Nf4
{[%clk 0:02:40.9]} 21... Re8 {[%clk 0:00:52.2]} 22. Nxd5 {[%clk 0:02:40.7]}
22... Qd8 {[%clk 0:00:49.9]} 23. Nf4 {[%clk 0:02:41.1]} 23... e5 {[%clk
0:00:34.7]} 24. dxe5 {[%clk 0:02:33]} 24... Bxe5 {[%clk 0:00:27.5]} 25. Nxe5
{[%clk 0:02:30.8]} 25... Nxe5 {[%clk 0:00:25.9]} 26. Be3 {[%clk 0:02:30.8]}
26... g5 {[%clk 0:00:20.6]} 27. Bd5 {[%clk 0:02:25.3]} 27... Qf6 {[%clk
0:00:11.3]} 28. hxg5 {[%clk 0:02:11.6]} 28... hxg5 {[%clk 0:00:11.4]} 29. Kg2
{[%clk 0:02:07.9]} 29... gxf4 {[%clk 0:00:10.6]} 30. Bxf4 {[%clk 0:02:08.5]}
30... c6 {[%clk 0:00:10.9]} 31. Bxf7+ {[%clk 0:02:03.2]} 31... Kxf7 {[%clk
0:00:12.8]} 32. Rad1 {[%clk 0:01:55.7]} 32... c5 {[%clk 0:00:11.8]} 33. Bxe5
{[%clk 0:01:41.7]} 33... Rxe5 {[%clk 0:00:11.7]} 34. Qb3+ {[%clk 0:01:42.1]}
34... Kg7 {[%clk 0:00:10.3]} 35. Rxe5 {[%clk 0:01:41.2]} 35... Qxe5 {[%clk
0:00:10.6]} 36. Qxb6 {[%clk 0:01:42.1]} 36... Qe4+ {[%clk 0:00:10.1]} 37. Kg1
{[%clk 0:01:40.3]} 37... Qe2 {[%clk 0:00:06]} 38. Rd7+ {[%clk 0:01:35.9]} 38...
Ne7 {[%clk 0:00:06.4]} 39. Rxe7+ {[%clk 0:01:37.1]} 39... Qxe7 {[%clk
0:00:06.8]} 40. Qxa6 {[%clk 0:01:38.2]} 40... Qe1+ {[%clk 0:00:07.4]} 41. Qf1
{[%clk 0:01:38.6]} 41... Qd2 {[%clk 0:00:08.7]} 42. Qb1 {[%clk 0:01:39.4]} 42...
c4 {[%clk 0:00:08.1]} 43. Qe4 {[%clk 0:01:39.3]} 1-0

[Event "*** Titled Tuesday Blitz"]
[Site "Chess.com"]
[Date "2019.04.02"]
[Round "8"]
[White "ilm2034"]
[Black "Nancy11111"]
[Result "1-0"]
[WhiteElo "2419"]
[BlackElo "2265"]
[TimeControl "180+2"]
[EndTime "15:49:01 PDT"]
[Termination "ilm2034 won by resignation"]

1. Nf3 {[%clk 0:03:01.9]} 1... d5 {[%clk 0:03:00]} 2. b3 {[%clk 0:03:02.5]} 2...
Nf6 {[%clk 0:02:58]} 3. Bb2 {[%clk 0:03:04.4]} 3... g6 {[%clk 0:02:58.7]} 4. e3
{[%clk 0:03:04.6]} 4... Bg7 {[%clk 0:02:59.4]} 5. Be2 {[%clk 0:03:03.9]} 5... b6
{[%clk 0:02:58.5]} 6. O-O {[%clk 0:03:05.1]} 6... O-O {[%clk 0:02:58.9]} 7. d3
{[%clk 0:03:05.3]} 7... Bb7 {[%clk 0:02:59.8]} 8. Nbd2 {[%clk 0:03:04.5]} 8...
Nbd7 {[%clk 0:02:58.7]} 9. Ne5 {[%clk 0:03:04.3]} 9... Nxe5 {[%clk 0:02:56]} 10.
Bxe5 {[%clk 0:03:06.2]} 10... c5 {[%clk 0:02:56.1]} 11. f4 {[%clk 0:03:04.8]}
11... Qd7 {[%clk 0:02:41.2]} 12. Nf3 {[%clk 0:02:59.6]} 12... e6 {[%clk
0:02:38.1]} 13. Bb2 {[%clk 0:02:58.6]} 13... Rac8 {[%clk 0:02:33]} 14. Ne5
{[%clk 0:02:59.2]} 14... Qe7 {[%clk 0:02:27.8]} 15. a4 {[%clk 0:03:00.5]} 15...
a5 {[%clk 0:02:25.3]} 16. g4 {[%clk 0:02:57.3]} 16... Rfd8 {[%clk 0:02:24.9]}
17. Qe1 {[%clk 0:02:50.2]} 17... d4 {[%clk 0:02:20.6]} 18. e4 {[%clk 0:02:49.3]}
18... Ne8 {[%clk 0:02:15.8]} 19. Nf3 {[%clk 0:02:47.7]} 19... e5 {[%clk
0:02:12.3]} 20. f5 {[%clk 0:02:41.9]} 20... Bh6 {[%clk 0:02:02.2]} 21. h4 {[%clk
0:02:41.7]} 21... Be3+ {[%clk 0:02:00.4]} 22. Kh2 {[%clk 0:02:40.9]} 22... Bf4+
{[%clk 0:01:58.8]} 23. Kh3 {[%clk 0:02:39.1]} 23... gxf5 {[%clk 0:01:58.9]} 24.
gxf5 {[%clk 0:02:39.2]} 24... Kh8 {[%clk 0:01:57.6]} 25. Bc1 {[%clk 0:02:38.1]}
25... Nf6 {[%clk 0:01:53.6]} 26. Bxf4 {[%clk 0:02:35.6]} 26... exf4 {[%clk
0:01:54.5]} 27. Qd2 {[%clk 0:02:37.1]} 27... Nh5 {[%clk 0:01:54.8]} 28. Ng5
{[%clk 0:02:38]} 28... Ng3 {[%clk 0:01:49.9]} 29. Rxf4 {[%clk 0:02:38.7]} 29...
Nxe2 {[%clk 0:01:50.2]} 30. Qxe2 {[%clk 0:02:38.9]} 30... Rg8 {[%clk 0:01:49.7]}
31. Qh5 {[%clk 0:02:39.3]} 31... Rg7 {[%clk 0:01:47.6]} 32. f6 {[%clk
0:02:40.5]} 32... Qd7+ {[%clk 0:01:48.2]} 33. Rf5 {[%clk 0:02:38.9]} 33... Rxg5
{[%clk 0:01:45.2]} 34. hxg5 {[%clk 0:02:37.9]} 34... Rg8 {[%clk 0:01:43.7]} 35.
Rh1 {[%clk 0:02:35.6]} 35... Rg6 {[%clk 0:01:42.4]} 36. Kg4 {[%clk 0:02:29.6]}
36... h6 {[%clk 0:01:42.1]} 37. Qxg6 {[%clk 0:02:09.3]} 37... fxg6 {[%clk
0:01:39.5]} 38. Rxh6+ {[%clk 0:02:10.8]} 38... Kg8 {[%clk 0:01:36.4]} 39. Rxg6+
{[%clk 0:02:12.1]} 39... Kf8 {[%clk 0:01:35.7]} 40. Rh6 {[%clk 0:02:13.4]} 40...
Bxe4 {[%clk 0:01:05.5]} 41. Rh8+ {[%clk 0:02:11.6]} 41... Kf7 {[%clk 0:01:05.4]}
42. Rh7+ {[%clk 0:02:08.9]} 42... Ke6 {[%clk 0:01:06.2]} 43. Rxd7 {[%clk
0:02:08.3]} 43... Bxf5+ {[%clk 0:01:05.6]} 44. Kf4 {[%clk 0:02:09.7]} 44... Kxd7
{[%clk 0:00:39.5]} 45. Kxf5 {[%clk 0:02:09.7]} 45... Kc6 {[%clk 0:00:39.4]} 46.
Ke6 {[%clk 0:02:07.9]} 46... b5 {[%clk 0:00:40.5]} 47. g6 {[%clk 0:02:08.6]}
47... c4 {[%clk 0:00:40.4]} 48. dxc4 {[%clk 0:02:08.3]} 48... bxc4 {[%clk
0:00:39.4]} 49. bxc4 {[%clk 0:02:09.5]} 49... Kc5 {[%clk 0:00:40.6]} 50. f7
{[%clk 0:02:10.6]} 50... Kxc4 {[%clk 0:00:42.2]} 51. g7 {[%clk 0:02:10.5]} 51...
Kc3 {[%clk 0:00:44.1]} 52. Kd5 {[%clk 0:02:11.1]} 52... Kxc2 {[%clk 0:00:43.1]}
53. Kxd4 {[%clk 0:02:12.4]} 53... Kb3 {[%clk 0:00:44.4]} 54. g8=Q {[%clk
0:02:10]} 54... Kxa4 {[%clk 0:00:46.3]} 55. Kc4 {[%clk 0:02:10.1]} 55... Ka3
{[%clk 0:00:46.4]} 56. Qg1 {[%clk 0:02:10.5]} 56... Ka2 {[%clk 0:00:45.7]} 57.
Kc3 {[%clk 0:02:10.6]} 57... a4 {[%clk 0:00:46]} 58. Kc2 {[%clk 0:02:11.6]}
58... Ka3 {[%clk 0:00:47]} 59. Qb6 {[%clk 0:02:09]} 1-0

[Event "*** Titled Tuesday Blitz"]
[Site "Chess.com"]
[Date "2019.04.02"]
[Round "8"]
[White "Oleg_Papayan"]
[Black "Blitzstream"]
[Result "0-1"]
[WhiteElo "2514"]
[BlackElo "2683"]
[TimeControl "180+2"]
[EndTime "15:49:05 PDT"]
[Termination "Blitzstream won by resignation"]

1. e4 {[%clk 0:03:01.9]} 1... d5 {[%clk 0:03:01]} 2. exd5 {[%clk 0:03:02.3]}
2... Qxd5 {[%clk 0:03:02.9]} 3. Nc3 {[%clk 0:03:03.2]} 3... Qa5 {[%clk
0:03:02.9]} 4. d4 {[%clk 0:03:04.1]} 4... Nf6 {[%clk 0:03:03.8]} 5. Nf3 {[%clk
0:03:05.2]} 5... c6 {[%clk 0:03:04.2]} 6. Bc4 {[%clk 0:03:00]} 6... Bf5 {[%clk
0:03:05.2]} 7. Ne5 {[%clk 0:03:00.1]} 7... e6 {[%clk 0:03:06.1]} 8. Qe2 {[%clk
0:02:59.8]} 8... Nbd7 {[%clk 0:02:52.8]} 9. Bd2 {[%clk 0:02:59.8]} 9... Nxe5
{[%clk 0:02:47.3]} 10. dxe5 {[%clk 0:02:56.1]} 10... Nd7 {[%clk 0:02:48.4]} 11.
f4 {[%clk 0:02:52.6]} 11... h5 {[%clk 0:02:46.8]} 12. Ne4 {[%clk 0:02:39.5]}
12... Qb6 {[%clk 0:02:26.2]} 13. Bc3 {[%clk 0:02:01.2]} 13... O-O-O {[%clk
0:02:18.7]} 14. Ng5 {[%clk 0:01:55.9]} 14... Bg4 {[%clk 0:02:04.5]} 15. Qf2
{[%clk 0:01:56.6]} 15... Bc5 {[%clk 0:02:03.7]} 16. Qg3 {[%clk 0:01:57.9]} 16...
Rhf8 {[%clk 0:01:21.6]} 17. h3 {[%clk 0:01:57.6]} 17... Bf5 {[%clk 0:01:13.7]}
18. O-O-O {[%clk 0:01:58.3]} 18... h4 {[%clk 0:00:52]} 19. Qf3 {[%clk
0:01:50.1]} 19... a5 {[%clk 0:00:41.4]} 20. Ne4 {[%clk 0:01:40.3]} 20... Bxe4
{[%clk 0:00:38.1]} 21. Qxe4 {[%clk 0:01:40.9]} 21... Bb4 {[%clk 0:00:33.5]} 22.
Bd4 {[%clk 0:01:33.1]} 22... Bc5 {[%clk 0:00:29.1]} 23. Bxc5 {[%clk 0:00:50.7]}
23... Qxc5 {[%clk 0:00:30.7]} 24. Rhe1 {[%clk 0:00:20.4]} 24... Nb6 {[%clk
0:00:31.5]} 25. Rxd8+ {[%clk 0:00:21.3]} 25... Rxd8 {[%clk 0:00:32.3]} 26. Bd3
{[%clk 0:00:23.2]} 26... g6 {[%clk 0:00:28.6]} 27. f5 {[%clk 0:00:22.6]} 27...
gxf5 {[%clk 0:00:19.8]} 28. Qxh4 {[%clk 0:00:23.2]} 28... Rxd3 {[%clk
0:00:17.4]} 29. Qf6 {[%clk 0:00:18.1]} 29... Rd7 {[%clk 0:00:18.1]} 30. h4
{[%clk 0:00:18.9]} 30... Qf2 {[%clk 0:00:19.1]} 31. Rh1 {[%clk 0:00:18.9]} 31...
Qd2+ {[%clk 0:00:20]} 0-1

[Event "*** Titled Tuesday Blitz"]
[Site "Chess.com"]
[Date "2019.04.02"]
[Round "8"]
[White "Perecke"]
[Black "HanSchut"]
[Result "1-0"]
[WhiteElo "2070"]
[BlackElo "2169"]
[TimeControl "180+2"]
[EndTime "15:49:06 PDT"]
[Termination "Perecke won by resignation"]

1. e4 {[%clk 0:03:01.9]} 1... c5 {[%clk 0:02:55.9]} 2. Nf3 {[%clk 0:02:59.8]}
2... d6 {[%clk 0:02:56.8]} 3. d4 {[%clk 0:02:54.4]} 3... cxd4 {[%clk 0:02:58.7]}
4. Nxd4 {[%clk 0:02:56]} 4... Nf6 {[%clk 0:02:58.5]} 5. Nc3 {[%clk 0:02:57]}
5... a6 {[%clk 0:02:59.3]} 6. h3 {[%clk 0:02:56.7]} 6... e6 {[%clk 0:03:00.2]}
7. g4 {[%clk 0:02:57.7]} 7... d5 {[%clk 0:03:01.7]} 8. Nde2 {[%clk 0:02:59]}
8... Bb4 {[%clk 0:02:54.9]} 9. Bg2 {[%clk 0:02:57.5]} 9... O-O {[%clk
0:02:50.6]} 10. Bg5 {[%clk 0:02:52.7]} 10... h6 {[%clk 0:02:35]} 11. Bxf6 {[%clk
0:02:43.4]} 11... Qxf6 {[%clk 0:02:35.5]} 12. exd5 {[%clk 0:02:44.5]} 12... exd5
{[%clk 0:02:34.6]} 13. O-O {[%clk 0:02:43.7]} 13... Be6 {[%clk 0:02:22.4]} 14.
Nxd5 {[%clk 0:02:40.2]} 14... Bxd5 {[%clk 0:02:23.2]} 15. Qxd5 {[%clk
0:02:40.4]} 15... Nc6 {[%clk 0:02:20.2]} 16. Qb3 {[%clk 0:02:37.4]} 16... Rae8
{[%clk 0:02:10.1]} 17. Ng3 {[%clk 0:02:34]} 17... Bd6 {[%clk 0:01:53.6]} 18.
Qxb7 {[%clk 0:01:56.3]} 18... Nd4 {[%clk 0:01:42]} 19. Qxa6 {[%clk 0:01:43.4]}
19... Qf4 {[%clk 0:01:16.8]} 20. Rae1 {[%clk 0:01:16.7]} 20... Rxe1 {[%clk
0:00:29.2]} 21. Rxe1 {[%clk 0:01:16.9]} 21... Nxc2 {[%clk 0:00:30.2]} 22. Rd1
{[%clk 0:01:08.4]} 22... Bb8 {[%clk 0:00:23.3]} 23. Qd3 {[%clk 0:00:57.6]} 23...
Nb4 {[%clk 0:00:21.2]} 24. Qd4 {[%clk 0:00:57.8]} 24... Qxd4 {[%clk 0:00:18.1]}
25. Rxd4 {[%clk 0:00:59.7]} 25... Nxa2 {[%clk 0:00:19.5]} 26. Nf5 {[%clk
0:00:52.3]} 26... Be5 {[%clk 0:00:16.5]} 27. Ra4 {[%clk 0:00:47.8]} 27... Nc1
{[%clk 0:00:12.7]} 28. b4 {[%clk 0:00:43.2]} 28... g6 {[%clk 0:00:09.8]} 29.
Ne7+ {[%clk 0:00:43.2]} 29... Kg7 {[%clk 0:00:10.1]} 30. Nc6 {[%clk 0:00:41.6]}
30... Bf4 {[%clk 0:00:08.9]} 31. b5 {[%clk 0:00:40.8]} 31... Re8 {[%clk
0:00:07]} 32. Rxf4 {[%clk 0:00:40.8]} 32... Re1+ {[%clk 0:00:07]} 33. Kh2 {[%clk
0:00:39.5]} 33... Ne2 {[%clk 0:00:08.1]} 34. Re4 {[%clk 0:00:37.8]} 1-0

[Event "*** Titled Tuesday Blitz"]
[Site "Chess.com"]
[Date "2019.04.02"]
[Round "8"]
[White "chessdjw"]
[Black "SloLev"]
[Result "1-0"]
[WhiteElo "2616"]
[BlackElo "2489"]
[TimeControl "180+2"]
[EndTime "15:49:13 PDT"]
[Termination "chessdjw won by resignation"]

1. e4 {[%clk 0:03:01.9]} 1... e5 {[%clk 0:02:58.9]} 2. Nf3 {[%clk 0:03:02.7]}
2... Nc6 {[%clk 0:03:00.1]} 3. Bc4 {[%clk 0:03:04.3]} 3... Bc5 {[%clk
0:02:59.7]} 4. c3 {[%clk 0:03:05.6]} 4... Nf6 {[%clk 0:02:58.5]} 5. d3 {[%clk
0:03:07]} 5... a6 {[%clk 0:02:57.7]} 6. a4 {[%clk 0:03:08.2]} 6... Ba7 {[%clk
0:02:58.4]} 7. O-O {[%clk 0:03:08.4]} 7... d6 {[%clk 0:02:55]} 8. h3 {[%clk
0:03:09.1]} 8... h6 {[%clk 0:02:45.7]} 9. Na3 {[%clk 0:03:10.2]} 9... O-O {[%clk
0:02:46.3]} 10. Nc2 {[%clk 0:03:11.4]} 10... Be6 {[%clk 0:02:43.6]} 11. Bxe6
{[%clk 0:03:09.2]} 11... fxe6 {[%clk 0:02:44]} 12. Be3 {[%clk 0:03:11.1]} 12...
Nh5 {[%clk 0:02:38]} 13. Bxa7 {[%clk 0:03:09.8]} 13... Rxa7 {[%clk 0:02:38.7]}
14. Nxe5 {[%clk 0:02:53.5]} 14... Nxe5 {[%clk 0:02:38.7]} 15. Qxh5 {[%clk
0:02:53.7]} 15... Nxd3 {[%clk 0:02:40.1]} 16. Nd4 {[%clk 0:02:46.2]} 16... Nf4
{[%clk 0:02:34]} 17. Qg4 {[%clk 0:02:43.7]} 17... Rf6 {[%clk 0:02:31.9]} 18. g3
{[%clk 0:02:01]} 18... Qe8 {[%clk 0:02:30.2]} 19. Kh2 {[%clk 0:01:54.4]} 19...
Nd3 {[%clk 0:02:22.5]} 20. Qe2 {[%clk 0:01:51.2]} 20... Nc5 {[%clk 0:02:20]} 21.
b4 {[%clk 0:01:47.7]} 21... Nd7 {[%clk 0:02:18.9]} 22. a5 {[%clk 0:01:29.7]}
22... Ra8 {[%clk 0:02:10.7]} 23. Rae1 {[%clk 0:01:29.7]} 23... Qg6 {[%clk
0:02:09.8]} 24. f4 {[%clk 0:01:25.7]} 24... e5 {[%clk 0:02:00.5]} 25. f5 {[%clk
0:01:27]} 25... Qf7 {[%clk 0:01:57.4]} 26. Nf3 {[%clk 0:01:19.1]} 26... Rf8
{[%clk 0:01:52.8]} 27. g4 {[%clk 0:01:20]} 27... Qb3 {[%clk 0:01:49]} 28. Qd3
{[%clk 0:01:09.9]} 28... R6f7 {[%clk 0:01:32.6]} 29. Re2 {[%clk 0:01:09.1]}
29... Nf6 {[%clk 0:01:28.5]} 30. Rg1 {[%clk 0:01:05.2]} 30... Re8 {[%clk
0:01:17.4]} 31. g5 {[%clk 0:01:05.4]} 31... hxg5 {[%clk 0:01:18.3]} 32. Nxg5
{[%clk 0:01:06.4]} 32... Nh5 {[%clk 0:01:13.1]} 33. Nxf7 {[%clk 0:01:03.5]}
33... Qxf7 {[%clk 0:01:05.4]} 34. Reg2 {[%clk 0:01:04.5]} 34... Nf4 {[%clk
0:01:04.4]} 35. Rxg7+ {[%clk 0:01:02.9]} 35... Qxg7 {[%clk 0:01:06.3]} 36. Qc4+
{[%clk 0:01:02.2]} 36... Kh8 {[%clk 0:01:03.5]} 37. Rxg7 {[%clk 0:01:02.9]}
37... Kxg7 {[%clk 0:01:05]} 38. Qxc7+ {[%clk 0:01:04.1]} 38... Kh6 {[%clk
0:00:46.2]} 39. Qxd6+ {[%clk 0:01:04.5]} 39... Kg5 {[%clk 0:00:43.2]} 40. Kg3
{[%clk 0:01:00]} 40... Ne2+ {[%clk 0:00:39.7]} 41. Kf3 {[%clk 0:01:00.7]} 41...
Nf4 {[%clk 0:00:40.1]} 42. h4+ {[%clk 0:00:59.5]} 42... Kxh4 {[%clk 0:00:37.5]}
43. Qh6+ {[%clk 0:00:55.4]} 43... Nh5 {[%clk 0:00:38.6]} 44. Qg6 {[%clk
0:00:51.9]} 1-0

[Event "*** Titled Tuesday Blitz"]
[Site "Chess.com"]
[Date "2019.04.02"]
[Round "8"]
[White "Karina_Oparina"]
[Black "PawnEatingZombie"]
[Result "0-1"]
[WhiteElo "2228"]
[BlackElo "2147"]
[TimeControl "180+2"]
[EndTime "15:49:13 PDT"]
[Termination "PawnEatingZombie won by resignation"]

1. Nf3 {[%clk 0:02:57.5]} 1... d5 {[%clk 0:03:00.2]} 2. g3 {[%clk 0:02:58.2]}
2... e6 {[%clk 0:03:01.4]} 3. Bg2 {[%clk 0:02:58.6]} 3... Nf6 {[%clk 0:03:02.4]}
4. O-O {[%clk 0:02:58.7]} 4... b5 {[%clk 0:03:01.1]} 5. d4 {[%clk 0:02:58.5]}
5... Be7 {[%clk 0:02:57.6]} 6. a4 {[%clk 0:02:52.8]} 6... b4 {[%clk 0:02:57.8]}
7. c4 {[%clk 0:02:39.2]} 7... c5 {[%clk 0:02:57.6]} 8. dxc5 {[%clk 0:02:38.4]}
8... O-O {[%clk 0:02:45.4]} 9. Nbd2 {[%clk 0:02:12.8]} 9... Na6 {[%clk
0:02:35.7]} 10. cxd5 {[%clk 0:02:06.6]} 10... Nxd5 {[%clk 0:02:35.7]} 11. e4
{[%clk 0:01:56.6]} 11... Nf6 {[%clk 0:02:33.1]} 12. e5 {[%clk 0:01:54.4]} 12...
Nd5 {[%clk 0:02:33.5]} 13. Nb3 {[%clk 0:01:50.8]} 13... Nxc5 {[%clk 0:02:32.2]}
14. Nfd4 {[%clk 0:01:46.6]} 14... Bb7 {[%clk 0:02:16.4]} 15. Nxc5 {[%clk
0:01:35.2]} 15... Bxc5 {[%clk 0:02:16.2]} 16. Nb3 {[%clk 0:01:33.9]} 16... Be7
{[%clk 0:02:12.6]} 17. Qe2 {[%clk 0:01:22.1]} 17... Qb6 {[%clk 0:01:59.7]} 18.
a5 {[%clk 0:01:10.2]} 18... Qa6 {[%clk 0:01:52.8]} 19. Qxa6 {[%clk 0:01:05.1]}
19... Bxa6 {[%clk 0:01:53.6]} 20. Rd1 {[%clk 0:01:00.6]} 20... Rfd8 {[%clk
0:01:45.4]} 21. Bd2 {[%clk 0:00:48]} 21... Rac8 {[%clk 0:01:42.3]} 22. Rac1
{[%clk 0:00:35.3]} 22... h6 {[%clk 0:01:35.1]} 23. Be1 {[%clk 0:00:26.9]} 23...
f6 {[%clk 0:01:00.7]} 24. f4 {[%clk 0:00:25.8]} 24... fxe5 {[%clk 0:01:00.8]}
25. fxe5 {[%clk 0:00:26.2]} 25... Bc4 {[%clk 0:00:44.1]} 26. Nd2 {[%clk
0:00:22]} 26... Be2 {[%clk 0:00:43.3]} 27. Nb3 {[%clk 0:00:17.4]} 27... Bxd1
{[%clk 0:00:43.4]} 28. Rxd1 {[%clk 0:00:18.3]} 28... Rc2 {[%clk 0:00:40.9]} 29.
Rd2 {[%clk 0:00:16.1]} 29... Rxd2 {[%clk 0:00:41.4]} 30. Bxd2 {[%clk 0:00:17]}
30... Rc8 {[%clk 0:00:39.7]} 31. Kf2 {[%clk 0:00:16.2]} 31... Rc2 {[%clk
0:00:38.2]} 32. Ke2 {[%clk 0:00:14.7]} 32... Rxb2 {[%clk 0:00:38.9]} 33. Nc1
{[%clk 0:00:12.9]} 33... Bg5 {[%clk 0:00:34.4]} 0-1